Cogmind - Beta 13 @@@ ROGUE MODE // 2024.04.13 @ 01:30:30 Player: GregoriusTechneticies Result: Destroyed by 8R-AWN with 8R-AWN's Boregun Performance ------------- Evolutions (0) 0 Regions Visited (3) 600 Robots Destroyed (21) 105 Value Destroyed (126) 126 Prototype IDs (12) 240 Alien Tech Used (0) 0 Bonus (0) 0 TOTAL SCORE: 1071 Bonus ------- None Cogmind --------- Core Integrity 0/250 Matter 247/300 Energy 100/100 System Corruption 16% Temperature Cool (0) Movement Core (50) Location -10/Exiles Parts ------- > --- POWER (1) -------- (None) > --- PROPULSION (2) --- (None) > --- UTILITY (2) ------ Signal Interpreter > --- WEAPON (2) ------- (None) > --- INVENTORY (5) ---- Signal Interpreter Peak State ------------ > --- POWER ------------ (None) > --- PROPULSION ------- Makeshift Leg > --- UTILITY ---------- Signal Interpreter Improved Terrain Scanner > --- WEAPON ----------- Small Laser Datajack > --- INVENTORY -------- Signal Interpreter [Rating: 10] Favorites ----------- Power Light Ion Engine Engine Light Ion Engine Propulsion Wheel Leg Makeshift Leg Wheel Wheel Utility Small Storage Unit Device Seismic Detector Storage Small Storage Unit Processor Signal Interpreter Weapon Assault Rifle Energy Gun Small Laser Ballistic Gun Assault Rifle Launcher Rocket Launcher Special Weapon Mining Laser Special Melee Weapon Datajack Build | -11 -10 -10 -10 ------- Run | Yrd Mat Min Exi Slots Evolved . | . . . . Power . | . . . . Propulsion . | . . . . Utility . | . . . . Weapon . | . . . . Parts Attached 28 | 12 7 1 8 Power 3 | 3 . . . Engine 3 | 3 . . . Core . | . . . . Reactor . | . . . . Propulsion 6 | 3 2 . 1 Treads . | . . . . Leg 1 | . . . 1 Wheel 5 | 3 2 . . Hover . | . . . . Flight . | . . . . Utility 6 | 3 1 . 2 Device 3 | 1 1 . 1 Storage 2 | 2 . . . Processor 1 | . . . 1 Hackware . | . . . . Protection . | . . . . Artifact . | . . . . Weapon 13 | 3 4 1 5 Energy Gun 3 | 1 . 1 1 Energy Cannon . | . . . . Ballistic Gun 4 | 2 2 . . Ballistic Cannon . | . . . . Launcher 1 | . . . 1 Special Weapon 3 | . 2 . 1 Impact Weapon . | . . . . Slashing Weapon . | . . . . Piercing Weapon . | . . . . Special Melee Weapon 2 | . . . 2 Unidentified Prototypes . | . . . . Parts Lost 12 | . . . 12 Power 1 | . . . 1 Propulsion 3 | . . . 3 Utility 3 | . . . 3 Weapon 5 | . . . 5 Highest Loss Streak 8 | . . . 8 To Critical Strikes 1 | . . . 1 Average Slot Usage (%) 93 | . 100 100 83 Engine 12 | . 14 14 10 Wheel 24 | . 28 28 20 Device 13 | . 14 14 13 Storage 12 | . 14 14 10 Processor 1 | . . . 3 Energy Gun 3 | . 3 4 2 Ballistic Gun 15 | . 17 23 10 Special Weapon 3 | . 7 . 1 Special Melee Weapon 3 | . . . 7 Naked Turns 5 | . . . 5 Heaviest Build 14 | 14 12 12 14 Greatest Support 20 | 20 20 20 20 Greatest Overweight (x) 4 | 1 . . 4 Average Overweight (x) . | . . . . Largest Inventory Capacity 8 | 8 8 8 8 Average Capacity 7 | 7 8 8 7 Most Carried 8 | 8 8 8 8 Average Carried 6 | 6 7 8 6 Final Capacity 8 | 8 8 8 5 Final Carried 8 | 8 8 8 1 Class Distribution -------------------- 52% | Scavenger-Mutant 47% | Mutant Dominant Class ---------------- Scavenger-Mutant | -10/Materials Scavenger-Mutant | -10/Mines Scavenger-Mutant | -10/Exiles Resources | -11 -10 -10 -10 ----------- Run | Yrd Mat Min Exi Matter Collected 567 | 425 36 105 1 Remotely . | . . . . Salvage Created 493 | 358 26 58 51 Parts 36 | 27 4 4 1 Haulers Intercepted . | . . . . Recyclers Shooed . | . . . . Parts Field Recycled . | . . . . Retrieved Matter . | . . . . Parts Self-Destructed . | . . . . Prevented . | . . . . Kills | -11 -10 -10 -10 ------- Run | Yrd Mat Min Exi Combat Hostiles Destroyed 9 | . 2 . 7 Guns 2 | . 2 . . AOE 7 | . . . 7 Classes Destroyed 7 | 3 1 1 2 Worker 5 | 4 . 1 . Builder 1 | . . 1 . Tunneler 10 | 9 . 1 . Recycler 1 | 1 . . . Swarmer 2 | . 2 . . Zionite 2 | . . . 2 Assembled 7 | . . . 7 Best Kill Streak 9 | 3 2 2 9 Combat Bots Only 7 | . 2 . 7 Max Kills in Single Turn 3 | 1 1 1 3 Gunslinging . | . . . . Exploded 2 | . . . 2 Melee . | . . . . Uniques/NPCs Destroyed . | . . . . Combat | -11 -10 -10 -10 -------- Run | Yrd Mat Min Exi Hostile Shots Fired 55 | . 14 . 41 Missed 13 | . 2 . 11 Damage Taken 1002 | . 93 . 909 Core 258 | . 22 . 236 Absorbed by Shields . | . . . . Core Remaining (%) 100 | 100 . . . Volleys Fired 101 | 35 21 10 35 Largest 2 | 2 2 2 2 Hottest 120 | 60 120 60 100 Shots Fired 155 | 70 28 20 37 Gun 125 | 70 13 20 22 Cannon . | . . . . Launcher 4 | . . . 4 Special 26 | . 15 . 11 Kinetic 71 | 35 13 16 7 Thermal 80 | 35 15 4 26 Explosive 4 | . . . 4 Electromagnetic . | . . . . Robot Hit Streak 11 | 8 2 3 11 Robot Miss Streak 4 | 4 2 2 1 Penetration Max . | . . . . Secondary Targets 1 | . 1 . . Max Gunslinging Chain 1 | . 1 . . Shots Hit Robots 86 | 40 5 11 30 Core Hits 35 | 15 2 3 15 Critical Kills . | . . . . Critical Parts Destroyed . | . . . . Critical Strikes . | . . . . Melee Attacks 17 | . . . 17 Impact . | . . . . Slashing . | . . . . Piercing . | . . . . Sneak Attacks 11 | . . . 11 Combat Hostiles . | . . . . Follow-up Attacks . | . . . . Damage Inflicted 1187 | 472 52 117 546 Guns 719 | 472 52 117 78 Cannons . | . . . . Explosions 439 | . . . 439 Melee . | . . . . Ramming 29 | . . . 29 Kinetic 413 | 181 52 106 74 Thermal 306 | 291 . 11 4 Explosive 439 | . . . 439 Electromagnetic . | . . . . Impact . | . . . . Slashing . | . . . . Piercing . | . . . . Highest Corruption 16 | . . . 16 Average Corruption 10 | . . . 10 Corruption Purged . | . . . . Corruption Blocked . | . . . . Effects 8 | . . . 8 Message Errors 3 | . . . 3 Matter Fused 2 | . . . 2 Parts Fused 1 | . . . 1 Misdirections 1 | . . . 1 Weapon Failures 1 | . . . 1 Overload Shots . | . . . . Overflow Damage 27 | . . . 27 Projectiles . | . . . . Explosions 27 | . . . 27 Melee . | . . . . Knockbacks . | . . . . Impact . | . . . . Kinetic . | . . . . Secondary . | . . . . Self-Inflicted Damage 153 | . . . 153 Shots 3 | . . . 3 Rammed 11 | . . . 11 Targets Rammed 11 | . . . 11 Kicked . | . . . . Crushed . | . . . . Highest Temperature 100 | . 40 . 100 Average Temperature 33 | . 16 . 52 Received Heat Transfer 35 | . 6 . 29 Siege Activations . | . . . . Robots Corrupted . | . . . . Combat Hostiles . | . . . . Parts Fried . | . . . . Impact Corruptions . | . . . . Robots Melted . | . . . . Combat Hostiles . | . . . . Parts Melted . | . . . . Heat Transferred 699 | 650 . 25 24 Parts Sabotaged . | . . . . Parts Stolen . | . . . . Parts Stripped . | . . . . Power Chain Reactions . | . . . . Alert | -11 -10 -10 -10 ------- Run | Yrd Mat Min Exi Peak Influence 125 | 70 125 63 . Initial 48 | . 45 48 . Average 61 | 39 88 55 . Maximum Alert Level . | . . . . Low Security (%) 100 | 100 100 100 . Level 1 . | . . . . Level 2 . | . . . . Level 3 . | . . . . Level 4 . | . . . . Level 5 . | . . . . High Security . | . . . . Max Security . | . . . . Squads Dispatched . | . . . . Investigation . | . . . . Extermination . | . . . . Reinforcement . | . . . . Assault . | . . . . Garrison . | . . . . Intercept . | . . . . Searches Triggered . | . . . . Construction Impeded . | . . . . Haulers Reinforced . | . . . . Active Scanning Responses . | . . . . Cargo Convoy Interrupts . | . . . . Stealth | -11 -10 -10 -10 --------- Run | Yrd Mat Min Exi Distress Signals . | . . . . Communications Jammed . | . . . . Distress Signals . | . . . . Times Spotted 17 | . 6 . 11 Peak Tracking Total 11 | . 3 . 11 Tactical Retreats 2 | . 1 . 1 Traps | -11 -10 -10 -10 ------- Run | Yrd Mat Min Exi Traps Triggered . | . . . . Indirectly . | . . . . Trap Hack Attempts . | . . . . Triggered . | . . . . Disarmed . | . . . . Reprogrammed . | . . . . Reused . | . . . . Traps Extracted . | . . . . Installed . | . . . . Triggered . | . . . . Machines | -11 -10 -10 -10 ---------- Run | Yrd Mat Min Exi Machines Disabled 4 | . . . 4 Max in Single Turn 2 | . . . 2 Machines Repaired . | . . . . Machines Dismantled . | . . . . Machines Sabotaged . | . . . . Overloaded Fab Kills . | . . . . Hacking | -11 -10 -10 -10 --------- Run | Yrd Mat Min Exi Machines Accessed 1 | . 1 . . Terminals 1 | . 1 . . Fabricators . | . . . . Repair Stations . | . . . . Recycling Units . | . . . . Scanalyzers . | . . . . Garrison Access . | . . . . Total Hacks 2 | . 2 . . Successful 1 | . 1 . . Failed 1 | . 1 . . Catastrophic . | . . . . Database Lockouts . | . . . . Manual 2 | . 2 . . Terminals 2 | . 2 . . Fabricators . | . . . . Repair Stations . | . . . . Recycling Units . | . . . . Scanalyzers . | . . . . Garrison Access . | . . . . Terminal Hacks . | . . . . Fabricator Hacks . | . . . . Repair Station Hacks . | . . . . Recycling Unit Hacks . | . . . . Scanalyzer . | . . . . Garrison Access Hacks . | . . . . Unauthorized Hacks 1 | . 1 . . Terminals 1 | . 1 . . Botnet 1 | . 1 . . Fabricators . | . . . . Repair Stations . | . . . . Recycling Units . | . . . . Scanalyzers . | . . . . Garrison Access . | . . . . Data Cores Recovered . | . . . . Used . | . . . . Hacking Detections 1 | . 1 . . Full Trace Events . | . . . . Feedback Events . | . . . . Feedback Blocked . | . . . . Robot Schematics Acquired . | . . . . Robots Built . | . . . . Authchips . | . . . . Time . | . . . . Total Robot Build Rating . | . . . . Part Schematics Acquired . | . . . . Parts Built . | . . . . Authchips . | . . . . Time . | . . . . Total Part Build Rating . | . . . . Parts Repaired . | . . . . Time . | . . . . Parts Recycled . | . . . . Recycled Matter . | . . . . Retrieved Matter . | . . . . Retrieved Components . | . . . . Parts Scanalyzed . | . . . . Part Schematics Acquired . | . . . . Parts Damaged . | . . . . Bothacking | -11 -10 -10 -10 ------------ Run | Yrd Mat Min Exi Used RIF Installer . | . . . . Robots Hacked 10 | . . . 10 Non-combat 2 | . . . 2 Combat 8 | . . . 8 Robot Hacks Applied 10 | . . . 10 parse_system 10 | . . . 10 Relay Couplers Released . | . . . . Fabnet Peak Effective % . | . . . . Robots Rewired . | . . . . Allies Hacked . | . . . . Hacks Repelled . | . . . . Allies | -11 -10 -10 -10 -------- Run | Yrd Mat Min Exi Total Allies . | . . . . Largest Group . | . . . . Highest-Rated Group . | . . . . Highest-Rated Ally . | . . . . Total Orders . | . . . . Ally Attacks . | . . . . Total Damage . | . . . . Kills . | . . . . Allies Corrupted . | . . . . Allies Melted . | . . . . Intel | -11 -10 -10 -10 ------- Run | Yrd Mat Min Exi Robot Analysis Total . | . . . . Derelict Logs Recovered 1 | . . 1 . Drone Launches . | . . . . Drone Recoveries . | . . . . Exploration | -11 -10 -10 -10 ------------- Run | Yrd Mat Min Exi Turns Passed 1411 | 391 380 213 427 Spaces Moved 1187 | 311 353 201 322 Core 38 | 17 . . 21 Treads . | . . . . Legs 16 | . . . 16 Wheels 1133 | 294 353 201 285 Hover . | . . . . Flight . | . . . . Fastest Speed 50 | 50 80 80 50 Average Speed 80 | 78 80 80 81 Slowest Speed 250 | 95 80 80 250 Overloaded Moves . | . . . . Propulsion Burnouts . | . . . . Robots Hopped . | . . . . Cave-ins Triggered 1 | . . . 1 Exploration Rate (%) 33 | 7 38 24 65 Regions Visited 3 Branch Regions 2 Pre-discovered Areas . | . . . . Known Exits Taken . | . . . . Unknown Exits Taken 3 | 1 1 1 . Scrap Searched 1 | . . 1 . Spaces Dug 19 | . 15 . 4 Terrain Destroyed 77 | . 15 . 62 Melee . | . . . . Projectile 20 | . 15 . 5 AOE 57 | . . . 57 Terrain Rammed . | . . . . Walls Destroyed . | . . . . Machines Disabled . | . . . . Actions | -11 -10 -10 -10 --------- Run | Yrd Mat Min Exi Total 1442 | 394 396 236 416 Wait 41 | . . 18 23 Move 1184 | 310 352 200 322 Hop . | . . . . Pick Up 36 | 25 8 3 . Fast Attach 3 | 1 . 1 1 Attach 13 | 8 . . 5 Detach . | . . . . Swap 12 | 3 7 . 2 Drop 24 | 12 8 4 . Fire 101 | 35 21 10 35 Melee 17 | . . . 17 Ram 11 | . . . 11 Kick . | . . . . Crush . | . . . . Escape Stasis . | . . . . Rewire . | . . . . Trap . | . . . . Miscellaneous . | . . . . Route ------- -11/Scrapyard -10/Materials (discovered 2 exits: [*Mat] / [*Min]) -10/Mines (discovered 2 exits: [*Mat] / [*Exi]) -10/Exiles History --------- Turn | Location | Event 10 | -11/Scrapyard | Discovered new exit (range 16) 392 | -11/Scrapyard | Entered Materials 397 | -10/Materials | Build established: Mutant 759 | -10/Materials | Discovered new exit (range 15) 772 | -10/Materials | Discovered new exit (range 15) 772 | -10/Materials | Entered Mines 775 | -10/Mines | Met a Derelict bent on vengeance 851 | -10/Mines | Learned 2 Materials zone layouts 857 | -10/Mines | Build established: Scavenger-Mutant 910 | -10/Mines | Received a Rocket Launcher from a helpful Derelict 920 | -10/Mines | Discovered new exit (range 9) 971 | -10/Mines | Deemed a non-threat by the Exiles lab entrance 971 | -10/Mines | Discovered new exit (range 5) 985 | -10/Mines | Entered Exiles 1006 | -10/Exiles | Met 8R-AWN 1036 | -10/Exiles | Met EX-HEX 1141 | -10/Exiles | Met EX-DEC 1170 | -10/Exiles | Visited The Gauntlet 1248 | -10/Exiles | Attacked by the Exiles 1294 | -10/Exiles | Crushed by falling debris 1294 | -10/Exiles | System corruption reached 10% 1327 | -10/Exiles | Destroyed 7 combat bots 1337 | -10/Exiles | Lost 8 parts (1p2n2u3w) 1400 | -10/Exiles | Core integrity fell below 50% 1407 | -10/Exiles | Core integrity fell below 20% 1412 | -10/Exiles | Destroyed by 8R-AWN with 8R-AWN's Boregun Last Messages --------------- 01406_ Destabilizing: System corrupted (+2). 01406_ HV Slug penetrates Testing Apparatus. 01406_ Penetrated by HV Slug. 01406_ HV Slug penetrates Testing Apparatus. 01407_ Slammed into 8R-AWN. 01408_ Broken Imp. Terrain Scanner destroyed. 01408_ System corrupted by crushing effect (+3). 01408_ HV Slug penetrates Testing Apparatus. 01408_ Penetrated by HV Slug. 01408_ HV Slug penetrates Testing Apparatus. 01409_ Slammed into 8R-AWN. 01409_ Signal Interpreter broken. 01409_ Destabilizing: Short circuit. 01411_ The unstable cave ceiling collapses. 01411_ Slammed into 8R-AWN. 01412_ Penetrated by HV Slug. 01412_ HV Slug penetrates Earth. 01412_ Penetrated by HV Slug. Map ----- +----------------------------------------------------+ | ?????????????????????????????????????????????# # | | ?????????????????????????????????????????????# # | | ?????????????????????????????????????????????# # | | ?????????????#######?????????????????????????# # | | ????????????#"""""""#????""""""????"""""?????# # | | ????????????#"" ""#???"""""""#???""""""????# # | | ????????????#" "#??"""""" "#???" """"???# # | | ????????????#"" ""#""#""" """#???"" """???# # | | ?????????????"" ""#""#"" ""????"" ""???# # | | ???????########"""###""###"""########"""###### # | | ???????#"""" "" """"""" """""""" """""" " | | ???????#" """""" """"""" | | ???????#""" | | ???????#"""" | | ???????#"" | | ???????#""" "" c "" | | ???????#"" """ """""" " """"" " """" | | ???????####"###" ########"""###""###"""########"" | | ??????????## ###"" ""#""#"" ""????"" | | ??????#????# #""" ""#""#""" ""#??#"" | | ???#???????# # ; """"""""#" " "#??#"""" | | ???????????## ; "" "#""#"""""""#???"" " | | ????????????# ; " " #""#"""""""#???"""" | | ????????????### # ;;;; ;;## "#??####??????### | | ??????#???????## # " ""#?????#????????? | | ???????????#??## @ """ ""#??????????????? | | ???????????????# ; ;;g#####;##??????#???????? | | ???????????????### ;;;;;; # #???# ???#??#????????? | | | | | | | | | | | | | | | | | | | | | | | | | | | | | | | | | | | | | | | | | | | | | +----------------------------------------------------+ Best States ------------- Heat Dissipation 25 Energy Generation 10 Energy Capacity 250 Matter Stores 300 Matter Capacity 300 Sight Range 16 Terrain Scan Range 16 Terrain Scan Density 10 Evasion (%) 55 Item Schematics ----------------- None Robot Schematics ------------------ None Fabricated ------------ Nothing Alien Tech Used ----------------- None Achievements -------------- None Challenges ------------ None Game ------ Seed BiocellNodeCasing Manual? 0 Play Time 00:26:33 Cumulative 25.5 hours Start 2024.04.13 @ 00:35:13 End 2024.04.13 @ 01:30:30 Sessions 1 Manual Loads 0 Difficulty Rogue Special Mode None Game No. 33 Rogue 18 Adventurer 0 Explorer 15 Win Type - Total 0 Types 0/0/0/0/0/0/0/0/0 Lore% 17 Gallery% 28 Achievement% 19 Wizard Run 0 Options --------- Layout 1 ASCII 0 Keyboard 0 Movement Mouse Keybinds 0 Fullscreen 1 Font 24/Smallcaps Map View 50x35 Zoom Use 0% Tactical HUD 1 Map Filters NONE Filters NONE Steam 1 RUN: eb682e1e-51e8-42f6-b403-939cedfa4be5